bitfinex/quotes_ETHUSD_20250519
["timestamp","ask_amount","ask_price","bid_price","bid_amount"]
[1747665080467,17.962,2434.8,2434.7,4.51801043]
[1747665080771,17.962,2434.8,2434.7,4.10728221]
[1747665081479,17.962,2434.8,2434.6,4.10737984]
[1747665081771,22.06918472,2434.8,2434.4,4.10778206]
[1747665081969,17.962,2434.8,2434.1,0.9836]
[1747665082174,17.962,2434.8,2434.6,4.1073739]
[1747665082563,8.985,2434.8,2434.7,4.10728221]
[1747665082760,17.958,2434.8,2434.6,4.10735812]
[1747665082963,17.958,2434.8,2434.7,4.10728221]
[1747665083465,8.973,2434.8,2434.7,4.10728221]
[1747665083665,0.05,2434.9,2434.8,4.10711352]
[1747665086160,0.05,2434.9,2434.6,0.82148423]
[1747665086392,0.05,2434.9,2434.8,4.10711352]
[1747665086575,0.05,2434.9,2434.7,4.10719752]
[1747665087103,0.05,2434.9,2434.6,4.10736003]
[1747665087309,0.05,2434.9,2434.7,4.10727592]
[1747665087473,0.05,2434.9,2434.5,4.10754106]
[1747665087661,0.55,2434.8,2434.1,0.9491]
[1747665087863,8.965,2434.7,2434.6,4.10745091]
[1747665088204,1.0064,2434.6,2434.1,0.9491]
[1747665088364,1.0064,2434.6,2434.5,4.10761963]
[1747665088565,8.965,2434.7,2434.6,4.10745091]
[1747665088977,8.965,2434.7,2434.5,4.10747176]
[1747665089291,8.965,2434.7,2434.3,4.1078239]
[1747665089592,8.965,2434.7,2434.3,4.10783054]
[1747665089972,8.965,2434.7,2434.4,4.10774568]
[1747665090597,8.965,2434.7,2433.5,25.747]
[1747665090598,13.07242898,2434.7,2433.8,0.9952]
[1747665090760,0.04106815,2434.6,2434.1,4.10823696]
[1747665090954,22.05628975,2434.7,2434.3,4.1079254]
[1747665091184,22.05628975,2434.7,2434.1,4.1081814]
[1747665091383,22.05628975,2434.7,2434.2,4.10796944]
[1747665091905,17.949,2434.7,2434.2,4.10796944]
[1747665092110,0.55,2434.6,2434.2,4.10796944]
[1747665092496,17.949,2434.7,2433.8,5.61441509]
[1747665092715,17.949,2434.7,2434.5,4.10754783]
[1747665093275,25.949,2434.7,2434.6,4.10745091]
[1747665093595,17.949,2434.7,2434.6,4.10745091]
[1747665094287,8.984,2434.7,2434.6,4.10745091]
[1747665094688,8.956,2434.8,2434.7,4.10728221]
[1747665098330,0.05,2434.9,2434.8,4.10711352]
[1747665098614,9.001,2434.9,2434.8,4.10711352]
[1747665098809,9.001,2434.9,2434.8,4.23542631]
[1747665099828,9.001,2434.9,2434.8,0.35909148]
[1747665100527,9.001,2434.9,2434.8,0.12831279]
[1747665100825,9.001,2434.9,2434.8,4.23542631]
[1747665101448,9.001,2434.9,2434.8,0.12831279]
[1747665101610,0.05,2434.9,2434.8,4.23542631]
[1747665101794,8.995,2434.9,2434.8,4.23542631]
[1747665101996,8.995,2434.9,2434.8,0.12831279]
[1747665102426,9.9979,2434.9,2434.8,0.12831279]
[1747665103403,9.9979,2434.9,2434.8,0.12832221]
[1747665103598,9.9979,2434.9,2434.8,4.23543573]
[1747665103900,9.9979,2434.9,2434.8,0.12832223]
[1747665104432,9.9939,2434.9,2434.8,4.23543549]
[1747665104795,8.991,2434.9,2434.8,4.23543549]
[1747665105405,0.05,2434.9,2434.8,4.23543549]
[1747665105698,8.99,2434.9,2434.8,5.30036324]
[1747665106133,8.99,2434.9,2434.8,6.31146324]
[1747665106134,0.05,2434.9,2434.8,6.31146324]
[1747665106632,0.05,2434.9,2434.8,4.46609758]
[1747665108141,0.05,2434.9,2434.8,4.46611658]
[1747665108300,0.05,2434.9,2434.8,0.35899316]
[1747665108502,0.05,2434.9,2434.8,4.33779461]
[1747665108717,0.05,2434.9,2434.8,4.23542617]
[1747665108915,0.05,2434.9,2434.8,4.46611396]
[1747665109138,0.05,2434.9,2434.8,4.46611419]
[1747665109356,0.05,2434.9,2434.8,4.46611537]
[1747665109964,0.05,2434.9,2434.8,4.46611543]
[1747665110152,0.05,2434.9,2434.8,4.3378017]
[1747665110351,0.05,2434.9,2434.8,4.46611512]
[1747665110573,0.05,2434.9,2434.8,4.46611437]
[1747665110762,0.05,2434.9,2434.8,5.32345144]
[1747665110954,0.05,2434.9,2434.8,4.46611228]
[1747665112454,0.75,2434.9,2434.8,4.46611228]
[1747665113453,0.75,2434.9,2434.8,4.23542485]
[1747665113766,0.75,2434.9,2434.8,4.4661062]
[1747665117378,0.75,2434.9,2434.8,0.35899268]
[1747665117989,0.75,2434.9,2434.8,4.4661062]
[1747665118999,0.75,2434.9,2434.8,0.35899597]
[1747665119283,2.2748,2434.9,2434.8,0.35899597]
[1747665119465,12.2648,2434.9,2434.8,0.23068135]
[1747665119650,11.7148,2434.9,2434.8,4.10711352]
[1747665119983,10.74,2434.9,2434.8,4.10711352]
[1747665120286,10.74,2434.9,2434.8,4.23543805]
[1747665121355,10.74,2434.9,2434.7,4.10723033]
[1747665121557,10.74,2434.9,2434.8,0.12832343]
[1747665121756,10.74,2434.9,2434.8,0.12832353]
[1747665122059,10.74,2434.9,2434.7,4.10723033]
[1747665122265,10.74,2434.9,2434.8,0.12832354]
[1747665122763,10.74,2434.9,2434.8,4.23543706]
[1747665122968,10.74,2434.9,2434.8,5.06970471]
[1747665123189,10.04,2434.9,2434.8,5.06970471]
[1747665123393,10.04,2434.9,2434.8,5.06968902]
[1747665123589,10.04,2434.9,2434.8,5.30034515]
[1747665124151,10.04,2434.9,2434.8,5.06968902]
[1747665124353,10.04,2434.9,2434.8,5.30034603]
[1747665126497,10.04,2434.9,2434.8,5.30033678]
[1747665126667,10.04,2434.9,2434.8,4.46606913]
[1747665127687,10.04,2434.9,2434.8,0.35895561]
[1747665127868,10.04,2434.9,2434.8,4.10711352]
[1747665129499,18.944,2434.9,2434.8,4.10711352]
[1747665129677,18.944,2434.9,2434.8,4.466076]
[1747665130071,18.944,2434.9,2434.8,0.35896248]
[1747665130396,18.944,2434.9,2434.8,4.466076]
[1747665131902,20.4561,2434.9,2434.8,0.12830977]
[1747665132510,19.9061,2434.9,2434.8,0.12830977]
[1747665132683,18.944,2434.9,2434.8,4.23543641]
[1747665133495,18.944,2434.9,2434.8,0.12832289]
[1747665134212,19.494,2434.9,2434.8,0.12832289]
[1747665134523,24.55084484,2434.9,2434.8,0.12832289]
[1747665134684,0.9353,2434.7,2434.4,8.0]
[1747665134884,18.929,2434.6,2434.2,4.10803785]
[1747665135100,18.929,2434.6,2434.3,4.10794677]
[1747665135296,18.929,2434.6,2434.4,4.10777691]
[1747665135497,14.64761963,2434.5,2434.4,0.12834413]
[1747665135797,4.10787409,2434.4,2433.7,0.9919]
[1747665136110,18.884,2434.3,2434.0,4.10838997]
[1747665136612,18.884,2434.3,2434.1,0.12835188]
[1747665136810,18.884,2434.3,2433.7,1.53911008]
[1747665137017,18.884,2434.3,2434.2,4.10812587]
[1747665137806,18.884,2434.3,2434.1,4.10819315]
[1747665139216,18.884,2434.3,2434.2,4.10812587]
[1747665139615,18.884,2434.3,2434.1,4.10819213]
[1747665140713,18.884,2434.3,2434.2,4.10812587]
[1747665140913,18.884,2434.3,2434.2,5.94725767]
[1747665141112,8.939,2434.6,2434.5,4.10761963]
[1747665141314,8.887,2434.7,2434.6,4.10745091]
[1747665141819,8.887,2434.7,2434.6,12.10745091]
[1747665142329,8.887,2434.7,2434.6,13.05885091]
[1747665142627,8.887,2434.7,2434.6,15.1862768]
[1747665142820,8.887,2434.7,2434.6,14.2348768]
[1747665143020,8.887,2434.7,2434.6,12.10745091]
[1747665143527,9.99,2434.8,2434.7,12.10728221]
[1747665143831,8.884,2434.8,2434.7,12.10728221]
[1747665143996,10.04,2434.9,2434.8,12.10711352]
[1747665144196,18.923,2434.9,2434.8,12.10711352]
[1747665145121,10.04,2434.9,2434.8,15.16179818]
[1747665145941,0.05,2434.9,2434.8,15.16179818]
[1747665150557,9.99,2435.7,2435.6,13.11056449]
[1747665150715,18.912,2435.9,2435.8,12.10542737]
[1747665152144,10.04,2435.9,2435.8,12.10542737]
[1747665152348,10.04,2435.9,2435.8,13.82700589]
[1747665152714,10.04,2435.9,2435.8,12.10542737]
[1747665153839,10.04,2435.9,2435.8,4.10542737]
[1747665154239,10.04,2435.9,2435.7,4.10552501]
[1747665154416,10.04,2435.9,2435.5,4.10588757]
[1747665154748,10.04,2435.9,2435.2,0.995]
[1747665154949,10.04,2435.9,2435.5,4.10593307]
[1747665155451,10.04,2435.9,2435.6,4.10575413]
[1747665156456,10.04,2435.9,2435.5,4.10589545]
[1747665156832,10.04,2435.9,2435.6,4.10573421]
[1747665157232,10.04,2435.9,2435.5,4.10578746]
[1747665157431,10.04,2435.9,2435.2,8.995]
[1747665157656,10.04,2435.9,2435.2,10.30515934]
[1747665158052,1.013,2435.8,2435.6,4.1057589]
[1747665158423,11.003,2435.8,2435.5,4.10590012]
[1747665158826,11.003,2435.8,2435.6,4.10570647]
[1747665160154,11.003,2435.8,2435.3,4.10627027]
[1747665160354,11.003,2435.8,2435.7,4.10559592]
[1747665161752,11.003,2435.8,2435.6,4.10576085]
[1747665161753,15.10853169,2435.8,2435.3,4.10616959]
[1747665161964,0.04106815,2435.7,2435.3,4.10616959]
[1747665162156,8.892,2435.7,2435.5,4.10588698]
[1747665162317,8.892,2435.7,2435.6,4.10576449]
[1747665162522,17.743,2435.7,2435.6,4.10576449]
[1747665163632,17.743,2435.7,2435.5,4.10584626]
[1747665164163,17.743,2435.7,2435.4,4.1060356]
[1747665164339,0.9602,2435.6,2435.4,4.1060356]
[1747665164741,0.9602,2435.6,2435.5,4.10593307]
[1747665164966,27.733,2435.7,2435.6,4.10576449]
[1747665165529,18.882,2435.7,2435.6,4.10576449]
[1747665165829,27.728,2435.7,2435.6,4.10576449]
[1747665166562,18.882,2435.7,2435.6,4.10576449]
[1747665167061,27.726,2435.7,2435.6,4.10576449]
[1747665167456,9.99,2435.7,2435.6,4.10576449]
[1747665167836,9.99,2435.7,2435.6,5.02082352]
[1747665169329,0.05,2435.9,2435.8,5.05542737]
[1747665169526,0.05,2435.9,2435.8,5.09647721]
[1747665169767,0.05,2435.9,2435.8,5.05542737]
[1747665170144,0.05,2435.9,2435.8,5.18366964]
[1747665170347,0.05,2435.9,2435.8,6.61467431]
[1747665170666,0.05,2435.9,2435.8,6.48643204]
[1747665171244,0.05,2435.9,2435.8,6.84403244]
[1747665171466,0.05,2435.9,2435.8,6.84403266]
[1747665171672,0.05,2435.9,2435.8,6.84403253]
[1747665171994,0.05,2435.9,2435.8,6.84403261]
[1747665172138,0.05,2435.9,2435.8,6.61467152]
[1747665172339,0.05,2435.9,2435.8,6.84403262]
[1747665172592,0.05,2435.9,2435.8,6.84403026]
[1747665172784,0.05,2435.9,2435.8,5.89403026]
[1747665172942,0.05,2435.9,2435.8,4.46302559]
[1747665173838,0.05,2435.9,2435.8,4.46342275]
[1747665174040,0.05,2435.9,2435.8,4.46342677]
[1747665174776,0.05,2435.9,2435.8,4.33518154]
[1747665174948,0.05,2435.9,2435.8,5.49827255]
[1747665176147,0.05,2435.9,2435.8,5.37002895]
[1747665176481,0.05,2435.9,2435.8,5.49827271]
[1747665176677,0.05,2435.9,2435.8,5.26852121]
[1747665176982,0.05,2435.9,2435.8,5.49827365]
[1747665177563,0.05,2435.9,2435.8,4.46342424]
[1747665177858,0.05,2435.9,2435.8,4.10542737]
[1747665180088,0.05,2435.9,2435.7,4.10555356]
[1747665180265,0.05,2435.9,2435.8,4.10542737]
[1747665182464,0.972,2435.8,2434.9,8.9461]
[1747665182660,9.99,2435.7,2435.4,4.10603184]
[1747665182989,9.99,2435.7,2435.3,4.10619855]
[1747665183158,9.99,2435.7,2435.4,4.10607035]
[1747665183558,0.9884,2435.4,2434.7,0.9899]
[1747665183797,18.84706815,2435.3,2434.9,4.10687552]
[1747665184096,18.806,2435.3,2435.1,4.10659803]
[1747665184299,18.806,2435.3,2434.9,4.10686642]
[1747665184475,18.806,2435.3,2435.0,4.10676462]
[1747665185205,18.806,2435.3,2435.1,4.10650751]
[1747665185770,18.806,2435.3,2435.2,4.10643889]
[1747665188623,9.99,2435.3,2435.2,4.10643889]
[1747665188784,18.799,2435.7,2435.6,4.10576449]
[1747665189176,18.799,2435.7,2435.5,4.10584358]
[1747665189377,18.799,2435.7,2435.6,4.10576449]
[1747665189702,18.799,2435.7,2435.2,5.90931834]
[1747665189703,18.799,2435.7,2435.3,4.10627027]
[1747665190009,18.799,2435.7,2435.3,4.10619342]
[1747665190212,18.799,2435.7,2435.6,4.10576449]
[1747665194214,9.99,2435.7,2435.6,4.10576449]
[1747665194410,8.801,2435.7,2435.6,4.10576449]
[1747665195318,8.801,2435.7,2435.5,4.10581947]
[1747665195519,8.801,2435.7,2435.6,4.10576449]
[1747665196322,18.885,2435.9,2435.8,4.10542737]
[1747665196617,27.683,2435.9,2435.7,4.10549623]
[1747665197225,18.885,2435.9,2435.7,4.10549623]
[1747665197553,10.04,2435.9,2435.8,4.10542737]
[1747665197896,10.04,2435.9,2435.8,13.11752737]
[1747665197897,0.05,2435.9,2435.8,13.11752737]
[1747665199894,0.05,2435.9,2435.8,5.11752737]
[1747665202236,0.05,2435.9,2435.8,4.10542737]
[1747665202422,0.05,2435.9,2435.8,5.10259884]
[1747665203497,0.05,2435.9,2435.8,6.13249884]
[1747665203728,0.05,2435.9,2435.8,22.97054258]
[1747665203927,0.05,2435.9,2435.8,23.47949884]
[1747665204530,0.05,2435.9,2435.8,23.78536501]
[1747665204923,0.05,2436.9,2436.8,4.10374261]
[1747665205256,0.05,2436.9,2436.8,5.02415458]
[1747665205934,0.05,2436.9,2436.7,4.10388054]
[1747665206333,1.0599,2436.9,2436.8,4.10374261]
[1747665207013,0.05,2436.9,2436.8,4.10374261]
[1747665207461,0.05,2436.9,2436.8,5.06624261]
[1747665207764,0.05,2436.9,2436.8,5.98325457]
[1747665208968,0.05,2436.9,2436.8,13.98325457]
[1747665211025,0.05,2436.9,2436.8,14.53325457]
[1747665211447,0.05,2437.9,2437.8,12.10205923]
[1747665216384,0.05,2437.9,2437.8,4.10205923]
[1747665216540,0.05,2437.9,2437.8,5.02292459]
[1747665216739,0.05,2437.9,2437.8,13.02292459]
[1747665216933,0.05,2437.9,2437.8,14.04352459]
[1747665220607,0.05,2437.9,2437.8,14.59352459]
[1747665220963,0.45998913,2438.4,2438.3,13.13411806]
[1747665221203,0.45998913,2438.4,2438.3,23.64766466]
[1747665221563,0.05,2438.9,2438.8,12.10037723]
[1747665221770,0.05,2438.9,2438.8,13.13327723]
[1747665230274,0.05,2438.9,2438.8,12.10037723]
[1747665230473,0.05,2438.9,2438.8,13.81973566]
[1747665231508,0.05,2438.9,2438.8,14.81243566]
[1747665231978,0.05,2438.9,2438.8,6.81243566]
[1747665232187,0.05,2438.9,2438.8,5.81973566]
[1747665237516,0.05,2438.9,2438.8,6.80253009]
[1747665237706,0.05,2438.9,2438.8,6.76153566]
[1747665238224,9.99,2440.0,2438.8,6.76153566]
[1747665238225,9.6703,2439.9,2439.8,4.09869661]
[1747665239593,9.6703,2439.9,2439.7,4.09874638]
[1747665239923,0.9443,2439.9,2439.8,4.09869661]
[1747665241516,8.95495484,2441.0,2440.0,4.0983208]
[1747665241685,8.95495484,2441.0,2440.7,4.09702911]
[1747665241886,1.0072,2440.9,2440.7,4.09702911]
[1747665242184,1.0072,2440.9,2440.8,4.09701737]
[1747665242623,18.4113,2441.1,2441.0,4.09668168]
[1747665243503,0.9425,2441.5,2441.4,4.09601048]
[1747665243701,18.4015,2441.5,2441.3,4.09608442]
[1747665243904,17.459,2441.5,2441.0,4.09664971]
[1747665244095,0.9425,2441.4,2441.0,4.09664971]
[1747665244294,0.9425,2441.3,2440.3,4.0977273]
[1747665244506,0.9425,2441.3,2440.6,4.09720489]
[1747665244816,0.9425,2441.3,2440.4,0.40977273]
[1747665245019,17.456,2441.2,2440.1,1.54105208]
[1747665245327,17.456,2441.2,2440.3,4.09785682]
[1747665245521,17.456,2441.2,2440.8,4.09687416]
[1747665245824,17.456,2441.2,2440.8,4.09691618]
[1747665245983,17.456,2441.2,2441.0,4.09659054]
[1747665246185,17.456,2441.2,2440.2,4.09802458]
[1747665246417,8.74,2441.2,2441.1,4.09651386]
[1747665246617,17.454,2441.2,2440.5,4.09736334]
[1747665246817,17.454,2441.2,2440.8,4.09694239]
[1747665247027,17.454,2441.2,2440.3,4.09785682]
[1747665247190,17.454,2441.2,2440.6,4.09734777]
[1747665247393,17.454,2441.2,2441.0,4.09657142]
[1747665247724,17.454,2441.2,2441.0,4.09656495]
[1747665247937,17.454,2441.2,2440.9,4.0967067]
[1747665248103,17.454,2441.2,2441.0,4.09663452]
[1747665248287,0.9425,2441.3,2440.9,4.09673215]
[1747665248482,17.449,2441.2,2441.0,4.0966632]
[1747665248689,17.448,2441.2,2441.1,4.09651386]
[1747665248988,17.448,2441.2,2440.6,0.9926]
[1747665249194,0.9425,2441.3,2441.1,4.09649979]
[1747665249496,0.9425,2441.3,2440.2,4.09802475]
[1747665249497,17.448,2441.2,2440.5,4.0974415]
[1747665249698,17.448,2441.2,2440.9,4.09671858]
[1747665250598,17.448,2441.2,2441.0,4.09666466]
[1747665250798,17.448,2441.2,2440.9,4.09680363]
[1747665251103,17.448,2441.2,2441.0,4.09668113]
[1747665251610,8.706,2441.1,2441.0,4.09659569]
[1747665252296,8.738,2441.2,2441.1,4.09651386]
[1747665252500,17.443,2441.2,2441.1,4.09651386]
[1747665253706,17.443,2441.2,2440.4,4.0976889]
[1747665253909,17.443,2441.2,2441.1,4.09651386]
[1747665254296,18.76064966,2441.6,2441.4,4.09601048]
[1747665254297,0.75482179,2441.6,2441.4,4.09601048]
[1747665254526,0.75482179,2441.6,2441.5,4.09584271]
[1747665254934,0.75482179,2441.6,2441.5,4.13679655]
[1747665255236,0.21375481,2443.3,2443.2,4.09299279]
[1747665255435,0.9557,2443.5,2443.4,4.09265777]
[1747665255633,0.9676,2444.1,2443.6,4.09225529]
[1747665255795,0.9676,2444.1,2443.2,0.0409246]
[1747665255995,0.9676,2444.1,2443.7,4.09205338]
[1747665256192,8.699,2444.0,2443.2,4.09299279]
[1747665256393,8.699,2444.0,2442.8,0.9891]
[1747665256710,8.699,2444.0,2443.4,4.09252467]
[1747665256910,12.79069119,2444.0,2443.4,4.09256621]
[1747665257111,8.699,2444.0,2442.9,4.09349543]
[1747665257311,8.699,2444.0,2442.8,0.9891]
[1747665257518,12.79078827,2444.0,2443.4,4.09257343]
[1747665257913,4.09192334,2443.9,2442.9,0.97251]
[1747665258111,4.09199233,2443.8,2443.3,4.09273531]
[1747665258444,4.09200157,2443.8,2442.9,13.76497268]
[1747665258645,8.699,2444.0,2443.4,4.09264351]
[1747665258850,12.79069437,2444.0,2443.0,1.47540727]
[1747665259135,4.09219219,2443.7,2443.2,4.09290696]
[1747665259428,0.9965,2443.8,2443.2,0.03153109]
[1747665259617,0.9965,2443.8,2443.3,4.09279343]
[1747665259820,0.9754,2445.7,2443.3,0.9719]
[1747665260020,0.9754,2444.8,2443.9,4.09182045]
[1747665260195,0.04106815,2444.7,2444.2,4.09124282]
[1747665260400,4.09092443,2444.5,2443.4,5.03445777]
[1747665260622,4.09092443,2444.5,2443.4,0.9418]
[1747665260623,0.9502,2444.3,2443.4,0.9418]
[1747665260836,0.9502,2444.3,2443.6,4.09221494]
[1747665261046,4.09059866,2444.7,2443.7,4.50134554]
[1747665261245,4.09074256,2444.6,2443.9,4.0917747]
[1747665261451,4.0907608,2444.6,2444.0,4.09155215]
[1747665261650,4.09098347,2444.4,2443.8,4.09190745]
[1747665261831,22.50438347,2444.4,2443.8,4.09190533]
[1747665262027,4.09130151,2444.3,2443.6,4.09223991]
[1747665262230,22.50447502,2444.4,2443.4,5.16961971]
[1747665262554,22.50447167,2444.4,2443.9,4.09180495]
[1747665262748,22.5044759,2444.4,2443.9,4.09180495]
[1747665263259,4.09124115,2444.3,2443.4,1.07704667]
[1747665263556,4.09115084,2444.3,2443.7,4.09213274]
[1747665264054,18.4134,2444.4,2443.5,0.51697756]
[1747665264055,18.4124,2444.4,2443.5,0.51697756]
[1747665264266,22.50338573,2444.4,2443.9,4.09167719]
[1747665264437,18.4124,2444.4,2443.9,4.09167719]
[1747665264791,18.4124,2444.4,2444.1,4.09147627]
[1747665264975,18.4124,2444.4,2444.0,4.09155365]
[1747665265618,18.4124,2444.4,2443.8,4.09194099]
[1747665265824,4.09140363,2444.2,2443.6,4.09216377]
[1747665266081,4.09140363,2444.2,2443.5,4.09239758]
[1747665266082,4.64160548,2444.1,2443.5,4.09239758]
[1747665266221,0.6395946,2445.3,2443.6,0.986]
[1747665266537,4.08849761,2445.9,2443.2,0.03153109]
[1747665266538,4.08987914,2445.1,2443.9,0.986]
[1747665266736,5.09526152,2445.0,2443.9,0.986]
[1747665266940,9.6962,2445.0,2444.5,4.09081611]
[1747665267134,9.6962,2445.0,2444.3,4.09100713]
[1747665267336,13.7861859,2445.0,2444.5,4.09071596]
[1747665267661,4.6402668,2444.9,2444.0,2.6446]
[1747665267980,8.764,2444.8,2444.3,4.0910517]
[1747665268278,8.69,2444.8,2444.7,4.09043241]
[1747665269064,8.69,2444.8,2444.6,4.09056576]
[1747665269271,8.69,2444.8,2444.5,4.09080245]
[1747665269470,8.69,2444.8,2444.1,4.09148271]
[1747665269671,8.69,2444.8,2444.5,4.09074318]
[1747665270274,8.69,2444.8,2444.3,4.0910057]
[1747665270680,12.78040912,2444.8,2444.1,4.09142055]
[1747665270981,4.0904825,2444.7,2444.2,4.09119611]
[1747665271183,8.69,2444.8,2444.0,4.0915384]
[1747665271382,8.69,2444.8,2443.7,4.40253948]
[1747665271383,1.0132,2444.6,2443.7,4.40253948]
[1747665271587,1.0132,2444.6,2444.2,4.0911909]
[1747665271790,1.0066,2446.3,2444.2,5.06642494]
[1747665272098,1.0066,2445.7,2444.8,4.09025728]
[1747665272254,1.0066,2445.7,2445.1,4.08970974]
[1747665272255,14.01048732,2445.7,2445.1,4.08970974]
[1747665272587,0.9944,2445.5,2444.5,5.06598109]
[1747665272788,0.9944,2445.5,2445.0,4.08984208]
[1747665272963,0.9944,2445.5,2444.9,4.09006331]
[1747665273164,17.597,2445.4,2445.0,4.08985156]
[1747665273370,17.597,2445.4,2445.0,4.08988591]
[1747665273570,17.597,2445.4,2445.1,4.08973489]
[1747665273764,17.597,2445.4,2445.2,4.08962491]
[1747665274092,17.597,2445.4,2445.1,4.08976876]
[1747665274256,17.597,2445.4,2444.5,0.9752]
[1747665274601,17.597,2445.4,2445.1,4.08977425]
[1747665274839,17.581,2445.3,2444.6,4.09064877]
[1747665275001,17.581,2445.3,2445.2,4.08964501]
[1747665275289,8.687,2445.3,2445.2,4.08964501]
[1747665276261,0.9571,2445.8,2445.4,4.08921628]
[1747665276601,0.9567,2445.8,2445.0,4.08997955]
[1747665276759,5.04542136,2445.8,2445.3,4.08939341]
[1747665276958,0.9567,2445.8,2445.4,4.0893025]
[1747665277255,0.9567,2445.8,2445.4,4.08925333]
[1747665277490,4.63882359,2445.7,2445.2,4.08955051]
[1747665277654,4.08789752,2446.3,2445.8,4.08861294]
[1747665277855,4.08789752,2446.3,2445.3,1.0134]
[1747665277856,1.0311,2446.1,2445.3,1.0134]
[1747665278052,17.992,2446.0,2445.2,4.08964501]
[1747665278257,17.992,2446.0,2445.6,4.08886315]
[1747665278466,17.992,2446.0,2444.7,0.13524667]
[1747665278467,8.0,2445.9,2444.7,1.12134667]
[1747665278669,12.08858105,2445.9,2445.4,4.08931054]
[1747665278859,0.9828,2445.8,2445.3,4.08939991]
[1747665279078,0.9828,2445.8,2445.4,4.08923016]
[1747665279277,17.983,2445.7,2445.3,4.08943682]
[1747665280005,0.55,2445.6,2444.7,1.12134667]
[1747665280181,0.9828,2445.4,2445.0,4.08989898]
[1747665280381,0.9828,2445.4,2445.1,4.08976225]
[1747665281079,0.9828,2445.4,2445.3,4.08947777]
[1747665281580,0.9828,2445.4,2444.6,4.22576397]
[1747665281899,5.41851848,2445.3,2444.6,4.22586339]
[1747665282100,18.001,2445.2,2444.8,4.09030443]
[1747665282287,18.001,2445.2,2444.8,4.09023755]
[1747665282702,17.664,2445.1,2444.6,0.13524667]
[1747665283000,21.7538506,2445.1,2444.6,4.22581145]
[1747665283200,17.614,2445.1,2444.7,4.09045504]
[1747665283408,17.614,2445.1,2444.7,4.0904677]
[1747665283595,21.70383809,2445.1,2444.6,4.22577337]
[1747665283788,1.5392,2445.0,2444.6,0.13524667]
[1747665283986,5.62925634,2445.0,2444.6,0.13524667]
[1747665284185,1.5392,2445.0,2444.6,4.22582463]
[1747665284386,1.5392,2445.0,2444.7,4.09044213]
[1747665284912,0.9892,2445.0,2444.8,4.09028082]
[1747665285115,8.986,2444.9,2444.7,4.09047409]
[1747665285312,8.986,2444.9,2444.6,0.13524667]
[1747665285926,4.0904516,2444.8,2444.6,0.13524667]
[1747665286109,8.992,2444.7,2444.6,0.13524667]
[1747665286610,8.992,2444.7,2444.6,4.22589544]
[1747665286915,8.992,2444.7,2444.6,0.13524667]
[1747665287426,8.992,2444.7,2444.6,0.18036803]
[1747665288004,8.992,2444.7,2444.6,4.2710168]
[1747665288209,17.951,2444.7,2444.6,0.18036803]
[1747665290918,17.951,2444.7,2444.5,4.27111338]
[1747665291224,0.9414,2444.6,2444.5,0.18036803]
[1747665292127,0.9414,2444.6,2444.5,4.27118414]
[1747665294227,18.8224,2444.6,2444.5,4.09081611]
[1747665294405,17.881,2444.6,2444.5,4.09081611]
[1747665296227,9.004,2445.7,2445.1,5.10655312]
[1747665296428,9.004,2445.7,2445.3,4.0893323]
[1747665296628,9.004,2445.7,2444.8,1.0168]
[1747665296629,9.004,2445.7,2444.9,4.09014683]
[1747665296932,9.004,2445.7,2445.3,4.08940008]
[1747665297248,5.09254703,2445.8,2445.3,4.08937026]
[1747665297454,17.985,2445.6,2445.0,4.08996841]
[1747665297737,17.985,2445.6,2445.0,4.08985221]
[1747665297894,17.985,2445.6,2445.4,4.08921733]
[1747665298232,17.985,2445.6,2445.3,0.13479712]
[1747665298392,0.9618,2445.4,2445.3,0.13479712]
[1747665298824,8.9618,2445.4,2445.3,0.13479712]
[1747665299231,13.05111054,2445.4,2445.3,0.13479712]
[1747665299438,13.60111054,2445.4,2445.3,0.13479712]
[1747665300242,13.60111054,2445.4,2445.1,0.17896894]
[1747665300243,13.59121054,2445.4,2445.1,0.17896894]
[1747665300526,8.0,2444.9,2444.5,0.35978014]
[1747665300692,0.55,2445.0,2444.5,0.35978014]
[1747665300693,17.961,2444.8,2444.5,0.35978014]
[1747665300898,17.961,2444.8,2444.5,4.45048918]
[1747665301128,17.961,2444.8,2444.7,4.09048144]
[1747665301315,17.961,2444.8,2444.6,4.09058601]
[1747665301520,17.961,2444.8,2444.5,4.09072379]
[1747665301723,17.961,2444.8,2444.6,4.09064144]
[1747665302317,17.961,2444.8,2444.4,4.09089297]
[1747665302522,17.961,2444.8,2443.8,1.0143]
[1747665302743,17.961,2444.8,2444.6,4.09059479]
[1747665303240,18.9599,2444.8,2444.5,4.09070152]
[1747665303541,18.9599,2444.8,2444.1,4.09138431]
[1747665303542,18.9599,2444.8,2444.6,4.09063592]
[1747665303739,18.9599,2444.8,2444.7,4.09048144]
[1747665303937,0.9989,2444.8,2444.7,4.09048144]
[1747665304143,18.9229,2444.8,2443.8,1.31474664]
[1747665304438,8.9902,2445.1,2444.7,4.09045852]
[1747665304641,0.55,2444.9,2444.2,0.98]
[1747665304826,4.64023461,2444.9,2444.4,4.09096372]
[1747665305048,4.64023461,2444.9,2444.4,4.09090027]
[1747665305264,4.64023461,2444.9,2443.9,0.98]
[1747665305265,4.09045214,2444.8,2443.9,0.98]
[1747665305437,1.001,2444.6,2443.9,1.48719057]
[1747665305637,17.917,2444.5,2444.2,4.09118329]
[1747665305956,17.917,2444.5,2443.9,5.57884523]
[1747665306188,8.992,2444.5,2444.4,4.09098347]
[1747665306326,17.909,2444.5,2444.4,4.09098347]
[1747665306522,17.909,2444.5,2444.2,4.09127434]
[1747665307262,17.909,2444.5,2444.3,4.09114825]
[1747665307465,1.0173,2444.8,2443.9,0.98]
[1747665307652,17.898,2444.7,2444.0,4.09165302]